fUSD/lending_fUSD_20251024
["ID","MTS","AMOUNT","RATE_DAILY","PERIOD"]
[392293036,1761315043287,-151.0,0.000403,120]
[392293037,1761315043297,-304.738707,0.000403,120]
[392293038,1761315043307,-151.0,0.000403,120]
[392293039,1761315043316,-151.0,0.000403,120]
[392293040,1761315043326,-304.738707,0.000403,120]
[392293041,1761315043336,-502.878016,0.000403,120]
[392293042,1761315043345,-304.738707,0.000403,120]
[392293043,1761315043355,-304.738707,0.000403,120]
[392293044,1761315043365,-502.878016,0.000403,120]
[392293045,1761315043375,-151.0,0.000403,120]
[392293046,1761315043385,-151.0,0.000403,120]
[392293047,1761315043397,-151.0,0.000403,120]
[392293048,1761315043407,-151.0,0.000403,120]
[392293049,1761315043416,-151.0,0.000403,120]
[392293050,1761315043426,-1720.806268,0.000403,120]
[392293051,1761315043436,-502.878016,0.000403,120]
[392293052,1761315043446,-156.230141,0.000403,120]
[392293053,1761315043455,-1720.806268,0.000403,120]
[392293054,1761315043465,-502.878016,0.000403,120]
[392293055,1761315043474,-156.230141,0.000403,120]
[392293056,1761315043483,-156.230141,0.000403,120]
[392293057,1761315043493,-1720.806268,0.000403,120]
[392293058,1761315043502,-151.0,0.000403,120]
[392293059,1761315043512,-99869.29192068,0.000403,120]
[392293060,1761315043521,-1425.0,0.00040304,2]
[392293061,1761315043531,-641.1767448,0.0004032,7]
[392293062,1761315043540,-150.34,0.0004032,2]
[392293063,1761315043550,-1404.53873763,0.00040328,2]
[392293064,1761315043559,-19446.3076888,0.00040329,3]
[392293065,1761315043569,-33098.8772357,0.00040329,3]
[392293066,1761315043578,-16549.4386179,0.00040331,3]
[392293067,1761315043588,-16549.4386179,0.00040335,3]
[392293068,1761315043597,-16187.72256222,0.00040339,60]
[392293069,1761315043622,-1502.66957276,0.00040339,60]
[392293070,1761315044916,-279.3450855,0.000382,30]
[392293071,1761315045037,-249.7420536,0.000382,30]
[392293072,1761315045050,-198.83,0.00040003,14]
[392293073,1761315045065,-1688.18686403,0.000403,120]
[392293074,1761315045086,-32.61940397,0.000403,120]
[392293075,1761315045099,-151.0,0.000403,120]
[392293076,1761315045112,-373.31977,0.000403,120]
[392293077,1761315045123,-979.049095,0.000403,30]
[392293078,1761315045135,-22448.33546502,0.00040339,60]
[392293079,1761315045150,-300.0,0.0004034,10]
[392293080,1761315045164,-315.45601705,0.0004034,10]
[392293081,1761315045175,-38892.6153776,0.00040341,3]
[392293082,1761315045187,-33098.8772357,0.00040341,3]
[392293083,1761315045200,-170.7331814,0.00040342,2]
[392293084,1761315045213,-11674.1420027,0.00040342,2]
[392293085,1761315045224,-151.0,0.00040342,120]
[392293086,1761315045236,-151.0,0.00040342,120]
[392293087,1761315045246,-151.0,0.00040342,120]
[392293088,1761315045271,-151.0,0.00040342,120]
[392293089,1761315045283,-235.807173,0.00040342,120]
[392293090,1761315045295,-151.0,0.00040342,120]
[392293091,1761315045308,-241.286011,0.00040342,120]
[392293092,1761315045320,-328.609197,0.00040342,120]
[392293093,1761315045333,-151.0,0.00040342,120]
[392293094,1761315045345,-151.0,0.00040342,120]
[392293095,1761315045358,-328.609197,0.00040342,120]
[392293096,1761315045371,-183.455001,0.00040342,120]
[392293097,1761315045384,-328.609197,0.00040342,120]
[392293098,1761315045396,-151.0,0.00040342,120]
[392293099,1761315045409,-328.609197,0.00040342,120]
[392293100,1761315045420,-151.0,0.00040342,120]
[392293101,1761315045432,-151.0,0.00040342,120]
[392293102,1761315045444,-151.0,0.00040342,90]
[392293103,1761315045456,-151.0,0.00040342,120]
[392293104,1761315045468,-422.068711,0.00040342,120]
[392293105,1761315045481,-800.48,0.00040342,30]
[392293106,1761315045492,-19446.3076888,0.00040345,3]
[392293107,1761315045505,-16549.4386179,0.00040345,3]
[392293108,1761315045518,-16549.4386179,0.00040345,3]
[392293109,1761315045530,-300.0,0.0004035,10]
[392293110,1761315045542,-77785.2307553,0.00040351,3]
[392293111,1761315045554,-10405.50477418,0.00040351,3]
[392293112,1761315046226,-1352.50362162,0.0003773,2]
[392293114,1761315046260,-8944.30263155,0.0003773,2]
[392293115,1761315046273,-979.049095,0.000403,30]
[392293116,1761315046285,-22693.37246152,0.00040351,3]
[392293117,1761315046297,-479.50285218,0.00040351,2]
[392293118,1761315046311,-151.0,0.00040351,120]
[392293120,1761315046323,-151.0,0.00040351,120]
[392293121,1761315046335,-275.180821,0.00040351,120]
[392293122,1761315046346,-151.0,0.00040351,120]
[392293123,1761315046359,-464.308877,0.00040351,120]
[392293124,1761315046371,-464.308877,0.00040351,120]
[392293125,1761315046384,-151.0,0.00040351,120]
[392293126,1761315046396,-464.308877,0.00040351,120]
[392293127,1761315046408,-151.0,0.00040351,120]
[392293128,1761315046420,-151.0,0.00040351,120]
[392293129,1761315046432,-151.0,0.00040351,120]
[392293130,1761315046444,-464.308877,0.00040351,120]
[392293131,1761315046456,-152.276425,0.00040351,120]
[392293132,1761315046468,-151.0,0.00040351,30]
[392293133,1761315046480,-151.0,0.00040351,120]
[392293134,1761315046491,-151.0,0.00040351,120]
[392293135,1761315046503,-152.359481,0.00040351,120]
[392293136,1761315046516,-151.0,0.00040351,120]
[392293137,1761315046528,-151.0,0.00040351,120]
[392293138,1761315046540,-151.0,0.00040351,120]
[392293139,1761315046551,-217.61869,0.00040351,120]
[392293140,1761315046563,-151.0,0.00040351,120]
[392293141,1761315046575,-151.0,0.00040351,60]
[392293142,1761315046587,-151.0,0.00040351,120]
[392293143,1761315046599,-151.0,0.00040351,120]
[392293144,1761315046611,-217.61869,0.00040351,120]
[392293145,1761315046623,-217.61869,0.00040351,120]
[392293146,1761315046635,-217.61869,0.00040351,120]
[392293147,1761315046647,-249.663902,0.00040351,120]
[392293148,1761315046659,-249.663902,0.00040351,120]
[392293149,1761315046671,-249.663902,0.00040351,120]
[392293150,1761315046682,-151.0,0.00040351,120]
[392293151,1761315046694,-249.663902,0.00040351,120]
[392293152,1761315046706,-151.0,0.00040351,120]
[392293153,1761315046717,-151.0,0.00040351,120]
[392293154,1761315046728,-153.332923,0.00040351,120]
[392293155,1761315046740,-151.0,0.00040351,120]
[392293156,1761315046751,-151.0,0.00040351,120]
[392293157,1761315046766,-304.738707,0.00040351,120]
[392293158,1761315046779,-151.0,0.00040351,120]
[392293159,1761315046792,-304.738707,0.00040351,120]
[392293160,1761315046805,-502.878016,0.00040351,120]
[392293161,1761315046817,-304.738707,0.00040351,120]
[392293162,1761315046831,-304.738707,0.00040351,120]
[392293163,1761315046848,-502.878016,0.00040351,120]
[392293164,1761315046861,-151.0,0.00040351,120]
[392293165,1761315046873,-151.0,0.00040351,120]
[392293166,1761315046885,-151.0,0.00040351,120]
[392293167,1761315046898,-233.799804,0.00040351,120]
[392293168,1761315046910,-1720.806268,0.00040351,120]
[392293169,1761315046922,-502.878016,0.00040351,120]
[392293170,1761315046934,-156.230141,0.00040351,120]
[392293171,1761315046947,-1720.806268,0.00040351,120]
[392293172,1761315046959,-502.878016,0.00040351,120]
[392293173,1761315046970,-156.230141,0.00040351,120]
[392293174,1761315046983,-156.230141,0.00040351,120]
[392293175,1761315046995,-151.0,0.00040351,120]
[392293176,1761315047007,-1720.806268,0.00040351,120]
[392293177,1761315047019,-1720.806268,0.00040351,120]
[392293178,1761315047031,-151.0,0.00040351,120]
[392293179,1761315047043,-979.049095,0.00040351,30]
[392293180,1761315047055,-373.31977,0.00040351,120]
[392293181,1761315047068,-151.0,0.00040355,120]
[392293182,1761315047079,-151.0,0.00040355,120]
[392293183,1761315047091,-151.0,0.00040355,120]
[392293184,1761315047104,-151.0,0.00040355,120]
[392293185,1761315047116,-151.0,0.00040355,120]
[392293186,1761315047128,-151.0,0.00040355,120]
[392293187,1761315047139,-151.0,0.00040355,120]
[392293188,1761315047151,-151.0,0.00040355,120]
[392293189,1761315047162,-151.0,0.00040355,120]
[392293190,1761315047173,-151.0,0.00040355,120]
[392293191,1761315047185,-422.714163,0.00040355,120]
[392293192,1761315047198,-151.0,0.00040355,120]
[392293193,1761315047211,-151.0,0.00040355,120]
[392293194,1761315047222,-151.0,0.00040355,120]
[392293195,1761315047231,-422.714163,0.00040355,120]
[392293196,1761315047240,-151.0,0.00040355,120]
[392293197,1761315047250,-422.714163,0.00040355,120]
[392293198,1761315047261,-151.0,0.00040355,120]
[392293199,1761315047271,-151.0,0.00040355,120]
[392293200,1761315047281,-269.328324,0.00040355,120]
[392293201,1761315047290,-151.0,0.00040355,120]
[392293202,1761315047300,-422.714163,0.00040355,120]
[392293203,1761315047309,-151.0,0.00040355,120]
[392293204,1761315047319,-151.0,0.00040355,120]
[392293205,1761315047329,-320.186317,0.00040355,120]
[392293206,1761315047338,-320.186317,0.00040355,120]
[392293207,1761315047347,-320.186317,0.00040355,120]
[392293208,1761315047357,-320.186317,0.00040355,120]
[392293209,1761315047367,-151.0,0.00040355,120]
[392293210,1761315047377,-151.0,0.00040355,120]
[392293211,1761315047386,-151.0,0.00040355,120]
[392293212,1761315047396,-151.0,0.00040355,120]
[392293213,1761315047406,-151.0,0.00040355,120]
[392293214,1761315047415,-263.135039,0.00040355,120]
[392293215,1761315047424,-151.0,0.00040355,120]
[392293216,1761315047434,-263.135039,0.00040355,120]
[392293217,1761315047443,-151.0,0.00040355,120]
[392293218,1761315047453,-263.135039,0.00040355,120]
[392293219,1761315047462,-151.0,0.00040355,120]
[392293220,1761315047472,-263.135039,0.00040355,120]
[392293221,1761315047481,-151.0,0.00040355,120]
[392293222,1761315047904,-151.0,0.00040355,120]
[392293223,1761315047929,-151.0,0.00040355,120]
[392293224,1761315047959,-151.0,0.00040355,120]
[392293225,1761315047985,-151.0,0.00040355,30]
[392293226,1761315047995,-151.0,0.00040355,120]
[392293227,1761315048004,-151.0,0.00040355,120]
[392293228,1761315048014,-152.421578,0.00040355,120]
[392293229,1761315048023,-300.726889,0.00040355,120]
[392293230,1761315048033,-151.0,0.00040355,120]
[392293231,1761315048042,-151.0,0.00040355,30]
[392293232,1761315048051,-151.0,0.00040355,120]
[392293233,1761315048060,-151.0,0.00040355,120]
[392293234,1761315048069,-151.0,0.00040355,30]
[392293235,1761315048079,-151.0,0.00040355,120]
[392293236,1761315048088,-151.0,0.00040355,120]
[392293237,1761315048098,-151.0,0.00040355,120]
[392293238,1761315048107,-151.0,0.00040355,120]
[392293239,1761315048120,-151.000001,0.00040355,120]
[392293240,1761315048129,-151.0,0.00040355,120]
[392293241,1761315048139,-151.0,0.00040355,120]
[392293242,1761315048149,-151.0,0.00040355,120]
[392293243,1761315048159,-151.0,0.00040355,120]
[392293244,1761315048168,-151.0,0.00040355,120]
[392293245,1761315048178,-151.0,0.00040355,120]
[392293246,1761315048187,-151.0,0.00040355,120]
[392293247,1761315048196,-151.0,0.00040355,120]
[392293248,1761315048206,-151.0,0.00040355,120]
[392293249,1761315048215,-151.0,0.00040355,120]
[392293250,1761315048224,-151.0,0.00040355,120]
[392293251,1761315048233,-151.0,0.00040355,120]
[392293252,1761315048243,-151.0,0.00040355,120]
[392293253,1761315048252,-151.0,0.00040355,120]
[392293254,1761315048262,-151.0,0.00040355,120]
[392293255,1761315048272,-151.0,0.00040355,120]
[392293256,1761315048282,-343.951958,0.00040355,120]
[392293257,1761315048291,-343.951958,0.00040355,120]
[392293258,1761315048301,-157.570693,0.00040355,120]
[392293259,1761315048311,-343.951958,0.00040355,120]
[392293260,1761315048320,-343.951958,0.00040355,120]
[392293261,1761315048329,-157.570693,0.00040355,120]
[392293262,1761315048339,-151.0,0.00040355,120]
[392293263,1761315048348,-151.0,0.00040355,120]
[392293264,1761315048358,-157.570693,0.00040355,120]
[392293265,1761315048367,-183.973554,0.00040355,120]
[392293266,1761315048376,-157.570693,0.00040355,120]
[392293267,1761315048385,-151.0,0.00040355,120]
[392293268,1761315048394,-151.0,0.00040355,120]
[392293269,1761315048404,-151.0,0.00040355,120]
[392293270,1761315048413,-183.973554,0.00040355,120]
[392293271,1761315048422,-151.0,0.00040355,120]
[392293272,1761315048431,-310.330743,0.00040355,120]
[392293273,1761315048440,-151.0,0.00040355,120]
[392293274,1761315048450,-151.0,0.00040355,120]
[392293275,1761315048459,-310.330743,0.00040355,120]
[392293276,1761315048468,-151.0,0.00040355,120]
[392293277,1761315048478,-183.973554,0.00040355,120]
[392293278,1761315048487,-151.0,0.00040355,120]
[392293279,1761315048496,-310.330743,0.00040355,120]
[392293280,1761315048506,-310.330743,0.00040355,120]
[392293281,1761315048515,-183.973554,0.00040355,120]
[392293282,1761315048524,-151.0,0.00040355,120]
[392293283,1761315048534,-151.0,0.00040355,120]
[392293284,1761315048543,-259.823336,0.00040355,120]
[392293285,1761315048552,-151.0,0.00040355,120]
[392293286,1761315048561,-259.823336,0.00040355,120]
[392293287,1761315048571,-259.823336,0.00040355,120]
[392293288,1761315048580,-151.0,0.00040355,120]
[392293289,1761315048589,-259.823336,0.00040355,120]
[392293290,1761315048598,-151.0,0.00040355,120]
[392293291,1761315048608,-151.0,0.00040355,120]
[392293292,1761315048618,-151.0,0.00040355,120]
[392293293,1761315048627,-151.0,0.00040355,120]
[392293294,1761315048636,-151.0,0.00040355,120]
[392293295,1761315048645,-151.0,0.00040355,120]
[392293296,1761315048655,-151.53906,0.00040355,120]
[392293297,1761315048664,-151.0,0.00040355,120]
[392293298,1761315048672,-151.0,0.00040355,120]
[392293299,1761315048681,-151.0,0.00040355,120]
[392293300,1761315048691,-151.0,0.00040355,120]
[392293301,1761315048700,-174.6337,0.00040355,120]
[392293302,1761315048710,-151.0,0.00040355,120]
[392293303,1761315048719,-151.0,0.00040355,120]
[392293304,1761315048729,-151.0,0.00040355,120]
[392293305,1761315048739,-151.0,0.00040355,120]
[392293306,1761315048748,-151.0,0.00040355,30]
[392293307,1761315048758,-151.0,0.00040355,120]
[392293308,1761315048767,-60.0703841,0.00040355,120]
[392293309,1761315048781,-90.9296159,0.00040355,120]
[392293310,1761315048790,-4583.9086051,0.00040355,3]
[392293311,1761315048886,-519.41498031,0.00040355,3]
[392293362,1761315962972,401.06402153,8e-05,2]
[392293363,1761315967037,365.23193689,0.00011,2]
[392293364,1761316038627,181.70482992,0.0001305,2]
[392293365,1761316076282,16551.99921166,0.00015,2]
[392293366,1761316076308,2500.0,0.00015,2]
[392293367,1761316076330,2500.0,0.00015,2]
[392293368,1761316076354,787749.1824879,0.00015,2]
[392293371,1761316093313,186.59130588,0.000135,2]
[392293373,1761316114526,265.57465802,0.000107,2]
[392293379,1761316159960,-151.0,0.000205,2]
[392293380,1761316159981,-500.0,0.00024932,2]
[392293381,1761316160000,-464.20660214,0.00029915,2]
[392293382,1761316160020,-208.09008286,0.00029999,2]
[392293383,1761316160040,-3173.875785,0.0003,5]
[392293399,1761316232026,-210.53195023,0.00029999,2]
[392293400,1761316232036,-189.69743099,0.00029999,2]
[392293401,1761316232182,-110.30256901,0.00029999,2]
[392293402,1761316232192,-314.0,0.00029999,2]
[392293403,1761316232201,-150.0,0.00029999,2]
[392293404,1761316232211,-20502.81595469,0.0003,5]
[392293419,1761316237898,-531.63683674,0.0003,5]
[392293420,1761316237910,-442.82756029,0.0003,5]
[392293421,1761316237987,-8859.62046398,0.0003,5]
[392293422,1761316237997,-625.78637787,0.0003,120]
[392293423,1761316238006,-5838.20829074,0.0003,2]
[392293424,1761316238017,-1121.15559179,0.0003,2]
[392293425,1761316238028,-3343.06240587,0.0003,2]
[392293426,1761316238040,-4248.55646136,0.0003,2]
[392293427,1761316238049,-500.0,0.0003326,2]
[392293428,1761316238064,-162.08624417,0.00034757,2]
[392293429,1761316238078,-152.0,0.00035328,3]
[392293430,1761316238088,-1670.95228329,0.00035897,2]
[392293431,1761316238100,-281.7510277,0.00035897,2]
[392293432,1761316238111,-1204.49316477,0.00035897,2]
[392293433,1761316238121,-1000.0,0.0003664,2]
[392293434,1761316238131,-200.0,0.00036742,30]
[392293435,1761316238141,-38.15759704,0.00036742,2]
[392293437,1761316238155,-6615.4000001,0.00036742,2]
[392293447,1761316238250,-2024.99999945,0.00036742,2]
[392293473,1761316240282,-89537.77863621,0.00036742,2]
[392293474,1761316240292,-371.681602,0.00036742,2]
[392293475,1761316240302,-7379.76513439,0.00036742,2]
[392293476,1761316240312,-550.0,0.00036742,2]
[392293477,1761316240321,-1023.96654455,0.00036742,2]
[392293478,1761316240331,-2489.34534861,0.00036742,2]
[392293479,1761316240345,-5220.898587,0.00036742,2]
[392293480,1761316240358,-6000.0,0.00036742,2]
[392293481,1761316240369,-380.8618433,0.00036742,2]
[392293483,1761316240378,-1491.19156126,0.00036742,2]
[392293484,1761316240389,-1048.49022591,0.00036742,2]
[392293485,1761316240399,-475.47831016,0.00036742,7]
[392293486,1761316240409,-5089.26320982,0.00036742,2]
[392293487,1761316240420,-1194.2437363,0.00036742,2]
[392293488,1761316240429,-1703.74438811,0.00036742,2]
[392293489,1761316240438,-5284.75625457,0.00036742,14]
[392293490,1761316240447,-571.36892847,0.00036742,2]
[392293491,1761316240457,-150.0,0.00036742,2]
[392293492,1761316240466,-7879.21624934,0.00036742,2]
[392293493,1761316240475,-5278.85311081,0.00036742,14]
[392293494,1761316240484,-1395.72699773,0.00036742,2]
[392293495,1761316240494,-635.453669,0.00036742,2]
[392293496,1761316240503,-223.16796571,0.00036742,5]
[392293497,1761316240512,-217.84748435,0.00036742,2]
[392293498,1761316240521,-10390.13087896,0.00036742,2]
[392293499,1761316240530,-6404.77244238,0.00036742,5]
[392293500,1761316240542,-476.35224409,0.00036806,2]
[392293501,1761316240551,-150.0,0.00036962,7]
[392293502,1761316240560,-268.1496886,0.00036962,7]
[392293503,1761316240569,-311.0,0.00037143,7]
[392293504,1761316240579,-14390.8444354,0.00037404,2]
[392293505,1761316240588,-152.0,0.00037487,4]
[392293506,1761316240598,-311.0,0.00037569,120]
[392293508,1761316240607,-440.55478081,0.00037633,2]
[392293510,1761316240616,-500.0,0.00037671,2]
[392293512,1761316240625,-311.0,0.00037985,2]
[392293514,1761316240635,-200.0,0.00038127,2]
[392293516,1761316240646,-311.0,0.00038225,7]
[392293518,1761316240657,-311.0,0.00038309,2]
[392293520,1761316240667,-2326.12505068,0.00038738,2]
[392293522,1761316240677,-311.0,0.0003875,2]
[392293524,1761316240686,-311.0,0.00038753,7]
[392293526,1761316240696,-311.0,0.0003879,2]
[392293528,1761316240706,-500.0,0.00038881,30]
[392293530,1761316240715,-666.0,0.0003894,3]
[392293532,1761316240725,-500.0,0.0003895,30]
[392293534,1761316240734,-24874.81,0.00038951,7]
[392293536,1761316240744,-163.42,0.0003899,2]
[392293538,1761316240752,-229.83,0.00038995,2]
[392293540,1761316240761,-31353.25324401,0.00039,2]
[392293542,1761316240771,-9882.0,0.00039,120]
[392293544,1761316240780,-10000.0,0.00039,120]
[392293546,1761316240789,-9999.99,0.00039,120]
[392293547,1761316240799,-10000.0,0.00039,120]
[392293548,1761316240809,-1000.0,0.000392,7]
[392293549,1761316240818,-500.0,0.00039296,30]
[392293550,1761316240828,-600.0,0.00039358,2]
[392293551,1761316240837,-525.76585025,0.0003937,30]
[392293552,1761316240847,-15918.16,0.0003941,2]
[392293553,1761316240857,-200.0,0.0003941,2]
[392293554,1761316240866,-500.0,0.00039434,30]
[392293555,1761316240876,-500.0,0.00039451,7]
[392293556,1761316240885,-500.0,0.00039451,7]
[392293557,1761316240897,-800.0,0.00039451,7]
[392293558,1761316240906,-8796.64969452,0.00039547,2]
[392293559,1761316240916,-15861.45620481,0.00039554,2]
[392293560,1761316240930,-152.0,0.00039647,5]
[392293561,1761316240940,-168.0,0.00039666,2]
[392293562,1761316240950,-500.0,0.00039673,30]
[392293563,1761316240960,-300.0,0.000397,14]
[392293564,1761316240969,-1872.42,0.000397,120]
[392293565,1761316240979,-152.25,0.00039704,2]
[392293566,1761316240988,-500.0,0.00039709,30]
[392293567,1761316240998,-500.0,0.00039726,15]
[392293568,1761316241007,-500.0,0.00039726,15]
[392293569,1761316241016,-500.0,0.00039726,15]
[392293570,1761316241026,-500.0,0.00039726,15]
[392293571,1761316241036,-500.0,0.00039726,15]
[392293572,1761316241045,-500.0,0.00039726,15]
[392293573,1761316241055,-500.0,0.00039726,15]
[392293574,1761316241065,-500.0,0.00039726,15]
[392293575,1761316241076,-500.0,0.00039726,15]
[392293576,1761316241086,-448.40457611,0.00039726,15]
[392293577,1761316241095,-500.0,0.00039726,15]
[392293578,1761316241104,-163.42,0.00039759,2]
[392293579,1761316241113,-8796.64969451,0.00039769,2]
[392293580,1761316241123,-600.0,0.000398,14]
[392293581,1761316241135,-500.0,0.00039831,30]
[392293582,1761316241144,-311.0,0.00039838,2]
[392293583,1761316241155,-166.66,0.00039887,2]
[392293584,1761316241164,-9961.3857,0.0003989,2]
[392293585,1761316241174,-1241.88743276,0.00039899,30]
[392293586,1761316241185,-302.645,0.00039899,56]
[392293587,1761316241196,-1740.82241809,0.000399,120]
[392293588,1761316241205,-181.04145176,0.000399,120]
[392293589,1761316241215,-405.2307,0.000399,2]
[392293590,1761316241225,-279.0283,0.000399,2]
[392293591,1761316241236,-900.0,0.000399,14]
[392293592,1761316241246,-178.46872865,0.000399,120]
[392293593,1761316241255,-215.57209124,0.000399,120]
[392293594,1761316241267,-220.63770462,0.000399,120]
[392293595,1761316241276,-164.594613,0.000399,120]
[392293596,1761316241286,-187.55493398,0.000399,120]
[392293597,1761316241300,-206.10271692,0.000399,120]
[392293598,1761316241310,-168.0,0.00039906,2]
[392293599,1761316241319,-167.17709053,0.00039928,15]
[392293600,1761316241330,-18197.48851013,0.0003996,2]
[392293601,1761316241343,-500.0,0.00039973,5]
[392293602,1761316241352,-501.59885983,0.00039973,5]
[392293603,1761316241362,-163.42,0.0003998,2]
[392293604,1761316241371,-311.0,0.00039983,120]
[392293605,1761316241381,-98969.0398573,0.0003999,3]
[392293606,1761316241391,-16328.6339166,0.0003999,3]
[392293607,1761316241401,-163.42,0.0003999,2]
[392293608,1761316241411,-8796.64969451,0.00039991,15]
[392293609,1761316241423,-500.0,0.00039999,30]
[392293610,1761316241434,-1000.0,0.0004,90]
[392293611,1761316241444,-500.0,0.0004,2]
[392293612,1761316241454,-10000.0,0.0004,120]
[392293613,1761316241464,-2010.93,0.0004,60]
[392293614,1761316241475,-171584.10422613,0.0004,2]
[392293615,1761316241485,-1206.17620652,0.0004,30]
[392293616,1761316241496,-512.99820834,0.0004,30]
[392293617,1761316241506,-50000.0,0.0004,10]
[392293618,1761316241516,-50000.0,0.0004,9]
[392293619,1761316241527,-50000.0,0.0004,19]
[392293620,1761316241537,-618.48,0.0004,120]
[392293621,1761316241547,-8806.25354693,0.0004,120]
[392293622,1761316241556,-200.0,0.00040028,20]
[392293623,1761316241567,-954.25208578,0.00040055,12]
[392293624,1761316241577,-150.0,0.00040086,30]
[392293625,1761316241587,-16328.6339166,0.00040091,3]
[392293626,1761316241598,-19793.8079715,0.00040101,3]
[392293627,1761316241608,-1747.852,0.00040111,120]
[392293628,1761316241619,-1000.0,0.00040112,7]
[392293629,1761316241629,-1425.0,0.00040139,2]
[392293630,1761316241639,-16328.6339166,0.00040145,3]
[392293631,1761316241649,-1404.53873763,0.00040149,2]
[392293632,1761316241660,-1425.0,0.00040149,2]
[392293633,1761316241674,-2500.0,0.00040151,2]
[392293634,1761316241685,-4548.13691067,0.00040152,15]
[392293635,1761316241695,-1700.70628813,0.00040154,2]
[392293636,1761316241705,-150.0,0.00040155,15]
[392293637,1761316241715,-150.0,0.00040155,15]
[392293638,1761316241725,-150.0,0.00040155,2]
[392293639,1761316241735,-1000.0,0.00040155,2]
[392293640,1761316241745,-500.0,0.00040199,30]
[392293641,1761316241756,-5000.0,0.000402,120]
[392293642,1761316241766,-1425.0,0.000402,2]
[392293643,1761316241776,-174.88705635,0.000402,120]
[392293644,1761316241787,-174.88705635,0.000402,120]
[392293645,1761316241797,-174.88705635,0.000402,120]
[392293646,1761316241807,-150.0,0.0004021,15]
[392293647,1761316241816,-150.0,0.0004021,15]
[392293648,1761316241827,-8796.64969451,0.00040212,15]
[392293649,1761316241836,-16328.6339166,0.00040234,3]
[392293650,1761316241846,-48985.9017498,0.00040241,3]
[392293651,1761316241857,-150.44,0.00040241,2]
[392293652,1761316241868,-972.49612224,0.00040241,7]
[392293653,1761316241879,-19793.8079715,0.00040244,3]
[392293654,1761316241889,-16328.6339166,0.00040244,3]
[392293655,1761316241900,-271.79,0.00040245,3]
[392293656,1761316241911,-19793.8079715,0.00040245,3]
[392293657,1761316241922,-16328.6339166,0.00040245,3]
[392293658,1761316241932,-98969.0398573,0.00040251,3]
[392293659,1761316241942,-97971.8034997,0.00040251,3]
[392293660,1761316241953,-151.0,0.00040251,120]
[392293661,1761316241964,-151.0,0.00040251,120]
[392293662,1761316241975,-151.0,0.00040251,120]
[392293663,1761316241985,-151.0,0.00040251,120]
[392293664,1761316241996,-151.0,0.00040251,120]
[392293665,1761316242006,-151.0,0.00040251,120]
[392293666,1761316242016,-151.0,0.00040251,120]
[392293667,1761316242026,-151.0,0.00040251,120]
[392293668,1761316242036,-151.0,0.00040251,120]
[392293669,1761316242046,-151.0,0.00040251,120]
[392293670,1761316242056,-151.0,0.00040251,120]
[392293671,1761316242066,-595.102315,0.00040251,120]
[392293672,1761316242076,-151.0,0.00040251,120]
[392293673,1761316242086,-151.0,0.00040251,120]
[392293674,1761316242097,-151.0,0.00040251,120]
[392293675,1761316242107,-595.102315,0.00040251,120]
[392293676,1761316242117,-151.0,0.00040251,120]
[392293677,1761316242127,-595.102315,0.00040251,120]
[392293678,1761316242138,-151.0,0.00040251,120]
[392293679,1761316242148,-151.0,0.00040251,120]
[392293680,1761316242162,-151.0,0.00040251,30]